bitfinex-derivatives/quotes_BTCF0:USTF0_20251210
["timestamp","ask_amount","ask_price","bid_price","bid_amount"]
[1765357290986,0.40593944,92687.0,92686.0,0.002]
[1765357291600,0.0107907,92674.0,92673.0,0.07771516]
[1765357291804,0.0107907,92674.0,92673.0,0.53771516]
[1765357292298,0.0107907,92674.0,92673.0,0.46]
[1765357292504,0.0107907,92674.0,92673.0,0.53771516]
[1765357292695,0.0107907,92674.0,92673.0,0.54271516]
[1765357292899,0.0117907,92674.0,92673.0,0.54271516]
[1765357293708,0.001,92674.0,92673.0,0.54271516]
[1765357294100,0.002,92674.0,92673.0,0.54871516]
[1765357294300,0.002,92674.0,92673.0,0.471]
[1765357301810,0.002,92674.0,92673.0,0.4817908]
[1765357306113,0.002,92674.0,92673.0,0.471]
[1765357306313,0.002,92674.0,92673.0,0.091]
[1765357307310,0.002,92674.0,92673.0,0.011]
[1765357320128,0.00178349,92674.0,92673.0,0.011]
[1765357320723,0.0107913,92669.0,92668.0,0.00016183]
[1765357320924,0.0107934,92651.0,92649.0,0.07771516]
[1765357321230,0.0107934,92651.0,92649.0,0.08]
[1765357321817,0.0107934,92651.0,92641.0,0.01070509]
[1765357321818,0.0107944,92642.0,92641.0,0.01086692]
[1765357322019,0.0107944,92642.0,92641.0,0.09016183]
[1765357323124,0.0147944,92642.0,92641.0,0.09116183]
[1765357323625,0.0147944,92642.0,92641.0,0.09016183]
[1765357323923,0.0127944,92642.0,92641.0,0.09116183]
[1765357324320,0.0137944,92642.0,92641.0,0.09116183]
[1765357334732,0.0137944,92642.0,92641.0,0.51116183]
[1765357345241,0.0137944,92642.0,92641.0,0.09116183]
[1765357345534,0.0137944,92642.0,92641.0,0.01116183]
[1765357348534,0.0302744,92642.0,92641.0,0.01116183]
[1765357350437,0.01648,92641.0,92640.0,0.00107945]
[1765357350634,0.0272763,92626.0,92624.0,0.07736327]
[1765357350833,0.0272763,92626.0,92624.0,0.55736327]
[1765357351034,0.0272763,92626.0,92624.0,0.48]
[1765357351242,0.0107963,92626.0,92625.0,0.077726]
[1765357351540,0.0107963,92626.0,92625.0,0.547726]
[1765357352140,0.0117963,92626.0,92625.0,0.47]
[1765357353642,0.002,92626.0,92625.0,0.473]
[1765357354442,0.00016192,92635.0,92634.0,0.0210353]
[1765357354641,0.00016192,92635.0,92634.0,0.4510353]
[1765357355938,0.00016192,92635.0,92634.0,0.4520353]
[1765357356144,0.00016192,92635.0,92634.0,0.52972198]
[1765357356347,0.00016192,92635.0,92634.0,0.4520353]
[1765357356637,0.10264924,92660.0,92642.0,0.01124]
[1765357356638,0.0107931,92653.0,92642.0,0.01124]
[1765357356942,0.0107931,92653.0,92650.0,0.0107934]
[1765357357144,0.0107931,92653.0,92650.0,0.4107934]
[1765357357845,0.0107928,92656.0,92650.0,0.4107934]
[1765357358043,0.0107928,92656.0,92654.0,0.010793]
[1765357358838,0.01648,92660.0,92657.0,0.0107926]
[1765357359037,0.01648,92660.0,92657.0,0.3907926]
[1765357360443,0.008,92660.0,92657.0,0.3917926]
[1765357360647,0.012,92660.0,92657.0,0.3927926]
[1765357360855,0.004,92660.0,92657.0,0.3917926]
[1765357361147,0.02748,92660.0,92657.0,0.3927926]
[1765357361346,0.01648,92658.0,92657.0,0.3927926]
[1765357362039,0.01648,92658.0,92657.0,0.3917926]
[1765357362235,0.01648,92658.0,92657.0,0.382]
[1765357362442,0.01648,92658.0,92657.0,0.002]
[1765357362943,0.01648,92652.0,92649.0,0.0107935]
[1765357363136,0.0272733,92652.0,92649.0,0.0107935]
[1765357363341,0.01648,92652.0,92649.0,0.0107935]
[1765357364652,0.02248,92652.0,92649.0,0.0117935]
[1765357364853,0.0332733,92652.0,92649.0,0.0117935]
[1765357365149,0.0352733,92652.0,92649.0,0.0127935]
[1765357366152,0.02448,92652.0,92649.0,0.0127935]
[1765357366854,0.0352734,92652.0,92649.0,0.0127935]
[1765357367358,0.0352734,92652.0,92649.0,0.002]
[1765357368751,0.4352734,92652.0,92649.0,0.002]
[1765357372058,0.1552734,92652.0,92649.0,0.002]
[1765357372747,0.0352734,92652.0,92649.0,0.002]
[1765357376352,0.0352734,92652.0,92649.0,0.412]
[1765357377161,0.0352734,92652.0,92650.0,0.0107935]
[1765357377359,0.0352734,92652.0,92650.0,0.1007935]
[1765357377557,0.02448,92652.0,92650.0,0.1007935]
[1765357377855,0.008,92652.0,92650.0,0.4607935]
[1765357378257,0.006,92652.0,92650.0,0.4607935]
[1765357378467,0.008,92652.0,92650.0,0.4617935]
[1765357378760,0.002,92652.0,92650.0,0.4617935]
[1765357378966,0.008,92652.0,92650.0,0.4627935]
[1765357382556,0.0187932,92652.0,92650.0,0.4627935]
[1765357384363,0.0362632,92652.0,92650.0,0.4627935]
[1765357385461,0.008,92652.0,92650.0,0.5927935]
[1765357385760,0.008,92652.0,92650.0,0.67046994]
[1765357386062,0.008,92652.0,92651.0,0.07767644]
[1765357386266,0.010792,92663.0,92652.0,0.01124]
[1765357386458,0.01095422,92661.0,92660.0,0.0107923]
[1765357386759,0.02842422,92661.0,92660.0,0.41]
[1765357387858,0.03442422,92661.0,92660.0,0.41]
[1765357388065,0.03842422,92661.0,92660.0,0.411]
[1765357388266,0.03842422,92661.0,92660.0,0.412]
[1765357389372,0.03542422,92661.0,92660.0,0.002]
[1765357389863,0.43542422,92661.0,92660.0,0.002]
[1765357390171,0.43242422,92661.0,92660.0,0.001]
[1765357393362,0.43242422,92661.0,92646.0,0.07767644]
[1765357393363,0.0107941,92645.0,92643.0,0.07767644]
[1765357393561,0.0107941,92645.0,92643.0,0.08]
[1765357394569,0.0117941,92645.0,92643.0,0.085]
[1765357396773,0.0117941,92645.0,92643.0,0.025]
[1765357399474,0.05647,92644.0,92643.0,0.05469]
[1765357399769,0.05647,92644.0,92643.0,0.025]
[1765357400185,0.05647,92644.0,92643.0,0.08382]
[1765357400470,0.05647,92644.0,92643.0,0.05269]
[1765357400670,0.05747,92644.0,92643.0,0.05369]
[1765357401172,0.05747,92644.0,92643.0,0.024]
[1765357401475,0.05747,92644.0,92643.0,0.05369]
[1765357401676,0.05747,92644.0,92643.0,0.08282]
[1765357402373,0.43747,92644.0,92643.0,0.004]
[1765357402883,0.05656,92629.0,92628.0,0.05578]
[1765357403177,0.05656,92629.0,92628.0,0.56578]
[1765357404173,0.0164,92634.0,92633.0,0.05578]
[1765357404174,0.07296,92634.0,92633.0,0.05578]
[1765357404364,0.07296,92634.0,92633.0,0.06578]
[1765357405579,0.07296,92634.0,92633.0,0.01]
[1765357405879,0.07296,92634.0,92633.0,0.05578]
[1765357406376,0.07496,92634.0,92633.0,0.07178]
[1765357408382,0.07496,92634.0,92633.0,0.016]
[1765357408580,0.0857553,92634.0,92633.0,0.07178]
[1765357409083,0.0857553,92634.0,92633.0,0.04459]
[1765357409278,0.4957553,92634.0,92633.0,0.07178]
[1765357410182,0.2957553,92634.0,92633.0,0.07178]
[1765357410684,0.2957553,92634.0,92633.0,0.0016592]
[1765357411188,0.2957553,92634.0,92619.0,0.05594192]
[1765357411189,0.067357,92620.0,92619.0,0.05594192]
[1765357411480,0.067357,92620.0,92619.0,0.54594192]
[1765357411680,0.067357,92620.0,92619.0,0.31594192]
[1765357412384,0.068357,92620.0,92619.0,0.32394192]
[1765357412980,0.05756,92620.0,92619.0,0.32394192]
[1765357413379,0.05956,92620.0,92619.0,0.33294192]
[1765357414379,0.05956,92620.0,92619.0,0.55294192]
[1765357416383,0.003,92620.0,92619.0,0.55294192]
[1765357416580,0.003,92620.0,92619.0,0.69294192]
[1765357417882,0.0837552,92636.0,92635.0,0.05578]
[1765357418188,0.00016192,92638.0,92637.0,0.05578]
[1765357418385,0.00016192,92638.0,92637.0,0.45578]
[1765357418886,0.02726192,92638.0,92637.0,0.45578]
[1765357419987,0.05772192,92638.0,92637.0,0.05778]
[1765357421477,0.47772192,92638.0,92637.0,0.05778]
[1765357421783,0.24872192,92638.0,92637.0,0.06178]
[1765357423986,0.05872192,92638.0,92637.0,0.46178]
[1765357432789,0.44951682,92638.0,92637.0,0.006]
[1765357433292,0.084867,92620.0,92619.0,0.05882192]
[1765357433500,0.084867,92620.0,92619.0,0.56882192]
[1765357434495,0.084867,92620.0,92619.0,0.57682192]
[1765357434496,0.085867,92620.0,92619.0,0.57682192]
[1765357435194,0.087867,92620.0,92619.0,0.58282192]
[1765357438801,0.03276,92620.0,92619.0,0.58282192]
[1765357438995,0.003,92620.0,92619.0,0.58282192]
[1765357456409,0.0107958,92634.0,92633.0,0.0693052]
[1765357456620,0.0406958,92634.0,92633.0,0.0693052]
[1765357456918,0.0688258,92634.0,92633.0,0.0693052]
[1765357457712,0.0698258,92634.0,92633.0,0.0733052]
[1765357458420,0.0708258,92634.0,92633.0,0.0783052]
[1765357460312,0.0708258,92634.0,92633.0,0.1083052]
[1765357462421,0.0871258,92634.0,92633.0,0.1083052]
[1765357466431,0.0871258,92634.0,92633.0,0.5783052]
[1765357466432,0.002,92634.0,92633.0,0.5783052]
[1765357468047,0.02903,92634.0,92633.0,0.5783052]
[1765357468343,0.10249032,92643.0,92633.0,0.5783052]
[1765357468344,0.0107935,92650.0,92649.0,0.05657]
[1765357468534,0.0664932,92653.0,92652.0,0.05657]
[1765357468730,0.0557,92653.0,92652.0,0.05657]
[1765357469945,0.04333,92655.0,92654.0,0.05657]
[1765357470142,0.04333,92655.0,92654.0,0.43657]
[1765357470345,0.02703,92655.0,92654.0,0.43657]
[1765357471139,0.03003,92655.0,92654.0,0.43757]
[1765357471333,0.009,92655.0,92654.0,0.51857]
[1765357471737,0.04333,92661.0,92660.0,0.0673623]
[1765357471952,0.04333,92661.0,92660.0,0.4673623]
[1765357472149,0.00016192,92662.0,92661.0,0.05657]
[1765357472444,0.00016192,92662.0,92661.0,0.47657]
[1765357472752,0.00016192,92662.0,92661.0,0.48729322]
[1765357473846,0.00116192,92662.0,92661.0,0.48829322]
[1765357474237,0.00116192,92662.0,92661.0,0.48929322]
[1765357474635,0.02819192,92662.0,92661.0,0.48929322]
[1765357474851,0.05686192,92662.0,92661.0,0.48929322]
[1765357480543,0.00116192,92662.0,92661.0,0.56929322]
[1765357481038,0.02819192,92662.0,92661.0,0.56929322]
[1765357481245,0.00116192,92662.0,92661.0,0.56929322]
[1765357482248,0.00107916,92665.0,92664.0,0.06831]
[1765357482450,0.00107916,92665.0,92664.0,0.58831]
[1765357482646,0.10249032,92680.0,92664.0,0.58831]
[1765357482647,0.0163,92680.0,92664.0,0.58831]
[1765357482855,0.13188209,92688.0,92687.0,0.05657]
[1765357483149,0.0827891,92688.0,92687.0,0.18657]
[1765357483539,0.0827891,92688.0,92687.0,0.05657]
[1765357483739,0.0827891,92688.0,92687.0,0.39657]
[1765357484358,0.0827891,92688.0,92687.0,0.05657]
[1765357485254,0.0877891,92688.0,92687.0,0.05757]
[1765357485748,0.0927891,92688.0,92687.0,0.05857]
[1765357485954,0.0917891,92688.0,92687.0,0.05857]
[1765357486254,0.0907891,92688.0,92687.0,0.05857]
[1765357486951,0.0907891,92688.0,92687.0,0.02921]
[1765357487354,0.0907891,92688.0,92687.0,0.002]
[1765357487655,0.04471375,92688.0,92687.0,0.002]
[1765357487952,0.24471375,92688.0,92687.0,0.002]
[1765357488153,0.3687891,92688.0,92687.0,0.002]
[1765357488456,0.46715899,92688.0,92687.0,0.002]
[1765357492152,0.46715899,92688.0,92687.0,0.05762]
[1765357492352,0.20715899,92688.0,92687.0,0.05762]
[1765357493058,0.1814791,92688.0,92687.0,0.05762]
[1765357495247,0.1814791,92688.0,92687.0,0.03043]
[1765357495450,0.3914791,92688.0,92687.0,0.002]
[1765357497256,0.41722178,92688.0,92687.0,0.002]
[1765357500169,0.0677901,92679.0,92678.0,0.02860183]
[1765357500359,0.0677901,92679.0,92678.0,0.00016183]
[1765357500766,0.4977901,92679.0,92678.0,0.00016183]
[1765357500966,0.4977901,92679.0,92649.0,0.10460409]
[1765357500967,0.0677929,92655.0,92654.0,0.05801]
[1765357501268,0.0677929,92655.0,92654.0,0.12801]
[1765357502268,0.058,92655.0,92654.0,0.49501]
[1765357502568,0.001,92655.0,92654.0,0.49501]
[1765357503269,0.002,92655.0,92654.0,0.50401]
[1765357516175,0.00016183,92664.0,92663.0,0.066642]
[1765357516489,0.00016183,92664.0,92663.0,0.506642]
[1765357516875,0.0107896,92684.0,92683.0,0.0666396]
[1765357517181,0.0107896,92684.0,92683.0,0.4166396]
[1765357517572,0.0386396,92684.0,92683.0,0.4166396]
[1765357518074,0.0107896,92684.0,92683.0,0.5066396]
[1765357518379,0.0446396,92684.0,92683.0,0.5086396]
[1765357518768,0.0738196,92684.0,92683.0,0.5086396]
[1765357520070,0.0167896,92684.0,92683.0,0.5086396]
[1765357520266,0.006,92684.0,92683.0,0.5086396]
[1765357520472,0.08001,92684.0,92683.0,0.5086396]
[1765357521878,0.08001,92684.0,92683.0,0.4186396]
[1765357531988,0.0907995,92684.0,92683.0,0.4186396]
[1765357538104,0.0907995,92684.0,92683.0,0.0686396]
[1765357539693,0.0907995,92684.0,92683.0,0.1586396]
[1765357539996,0.08001,92684.0,92683.0,0.5186396]
[1765357541196,0.08001,92684.0,92683.0,0.4286396]
[1765357543999,0.08001,92684.0,92683.0,0.002]
[1765357544296,0.08001,92684.0,92683.0,0.03023]
[1765357544496,0.08001,92684.0,92683.0,0.002]
[1765357545794,0.08001,92684.0,92683.0,0.05726]
[1765357546992,0.08001,92684.0,92683.0,0.48726]
[1765357558606,0.07979341,92684.0,92683.0,0.48726]
[1765357561309,0.43979341,92684.0,92683.0,0.072]
[1765357561607,0.0684906,92675.0,92674.0,0.02949183]
[1765357561807,0.0684906,92675.0,92674.0,0.03325075]
[1765357562009,0.09429235,92675.0,92674.0,0.03325075]
[1765357562205,0.0684906,92675.0,92674.0,0.06189075]
[1765357562812,0.0942856,92675.0,92674.0,0.06289075]
[1765357563111,0.0962856,92675.0,92674.0,0.06289075]
[1765357564011,0.0972856,92675.0,92674.0,0.06289075]
[1765357564714,0.0962856,92675.0,92674.0,0.06289075]
[1765357565011,0.0962856,92675.0,92674.0,0.06389075]
[1765357565012,0.0982856,92675.0,92674.0,0.06389075]
[1765357566400,0.0992856,92675.0,92674.0,0.06389075]
[1765357568301,0.09927143,92675.0,92674.0,0.06389075]
[1765357568510,0.0734906,92675.0,92674.0,0.06389075]
[1765357570517,0.0734906,92675.0,92674.0,0.47389075]
[1765357570814,0.0157906,92675.0,92674.0,0.55389075]
[1765357571018,0.005,92675.0,92674.0,0.55389075]
[1765357576619,0.0107896,92684.0,92683.0,0.05728]
[1765357576921,0.0107896,92684.0,92683.0,0.53728]
[1765357577221,0.0107896,92684.0,92683.0,0.5480696]
[1765357577521,0.0402596,92684.0,92683.0,0.5480696]
[1765357577716,0.0699696,92684.0,92683.0,0.5480696]
[1765357577915,0.0901896,92684.0,92683.0,0.44828]
[1765357578215,0.0951896,92684.0,92683.0,0.44928]
[1765357582815,0.12066697,92684.0,92683.0,0.44928]
[1765357584127,0.12066697,92684.0,92683.0,0.52928]
[1765357584128,0.09095697,92684.0,92683.0,0.52928]
[1765357584318,0.04426697,92684.0,92683.0,0.52928]
[1765357585728,0.07324697,92684.0,92683.0,0.52928]
[1765357586618,0.12104697,92684.0,92683.0,0.52928]
[1765357588229,0.12104697,92684.0,92683.0,0.5400696]
[1765357590625,0.09122697,92684.0,92683.0,0.5400696]
[1765357591030,0.12104697,92684.0,92683.0,0.5400696]
[1765357592936,0.0955696,92684.0,92683.0,0.5400696]
[1765357595942,0.008,92684.0,92683.0,0.5400696]
[1765357600142,0.0026325,92684.0,92683.0,0.5400696]
[1765357600340,0.0026325,92684.0,92683.0,0.61760212]
[1765357601348,0.0026325,92684.0,92683.0,0.61770847]
[1765357602842,0.0026325,92684.0,92683.0,0.5400696]
[1765357604838,0.0026325,92684.0,92683.0,0.5390696]
[1765357605038,0.0036325,92684.0,92683.0,0.5400696]
[1765357605441,0.001,92684.0,92683.0,0.5410696]
[1765357605749,0.00107887,92690.0,92689.0,0.0660089]
[1765357605948,0.00107887,92690.0,92689.0,0.5260089]
[1765357608054,0.06087887,92690.0,92689.0,0.5260089]
[1765357609655,0.03105887,92690.0,92689.0,0.5260089]
[1765357609950,0.00207887,92690.0,92689.0,0.5260089]
[1765357612152,0.0107876,92701.0,92700.0,0.05522]
[1765357612349,0.03601553,92701.0,92700.0,0.53522]
[1765357612547,0.0107873,92704.0,92703.0,0.05645]
[1765357612742,0.03596756,92704.0,92703.0,0.49645]
[1765357614464,0.0107866,92710.0,92709.0,0.02832]
[1765357614660,0.0107866,92710.0,92709.0,0.49645]
[1765357614854,0.02517963,92710.0,92709.0,0.50752986]
[1765357615053,0.00016183,92713.0,92712.0,0.0672363]
[1765357615261,0.00016183,92713.0,92712.0,0.5572363]
[1765357616162,0.00016183,92713.0,92712.0,0.5745963]
[1765357616566,0.027085,92724.0,92723.0,0.067235]
[1765357616766,0.0426925,92724.0,92723.0,0.537235]
[1765357616967,0.0107846,92727.0,92725.0,0.05645]
[1765357617160,0.40312,92726.0,92725.0,0.05645]
[1765357617359,0.43298,92726.0,92725.0,0.14645]
[1765357618370,0.37516,92726.0,92725.0,0.56645]
[1765357618561,0.37716,92726.0,92725.0,0.56745]
[1765357618760,0.40712,92726.0,92725.0,0.56745]
[1765357618968,0.03196,92726.0,92725.0,0.56745]
[1765357619156,0.02996,92726.0,92725.0,0.56745]
[1765357619366,0.02489736,92726.0,92725.0,0.57045]
[1765357619672,0.05475736,92726.0,92725.0,0.57045]
[1765357620262,0.05475736,92726.0,92725.0,0.56945]
[1765357620568,0.05575736,92726.0,92725.0,0.57145]
[1765357620966,0.05475736,92726.0,92725.0,0.24945]
[1765357621173,0.05475736,92726.0,92725.0,0.24845]
[1765357621380,0.05475736,92726.0,92725.0,0.25045]
[1765357621672,0.05475736,92726.0,92725.0,0.52045]
[1765357621873,0.05475736,92726.0,92725.0,0.51945]
[1765357622172,0.05575736,92726.0,92725.0,0.52145]
[1765357622373,0.05575736,92726.0,92725.0,0.51845]
[1765357622674,0.05532486,92726.0,92725.0,0.52045]
[1765357623568,0.02446486,92726.0,92725.0,0.51845]
[1765357623783,0.02446486,92726.0,92725.0,0.52045]
[1765357624072,0.05159486,92726.0,92725.0,0.52145]
[1765357624473,0.05259486,92726.0,92725.0,0.52145]
[1765357625075,0.05259486,92726.0,92725.0,0.51845]
[1765357625273,0.05159486,92726.0,92725.0,0.06045]
[1765357625462,0.05159486,92726.0,92725.0,0.03232]
[1765357625773,0.48666401,92726.0,92725.0,0.004]
[1765357626679,0.48666401,92726.0,92725.0,0.002]
[1765357626885,0.48666401,92726.0,92725.0,0.004]
[1765357627375,0.48666401,92726.0,92716.0,0.00016183]
[1765357627376,0.0658357,92717.0,92716.0,0.00016183]
[1765357627584,0.24090485,92717.0,92716.0,0.00016183]
[1765357628473,0.24290485,92717.0,92716.0,0.00016183]
[1765357629684,0.09290485,92717.0,92716.0,0.05820183]
[1765357630284,0.09490485,92717.0,92716.0,0.05920183]
[1765357630877,0.09290485,92717.0,92716.0,0.05820183]
[1765357631077,0.09490485,92717.0,92716.0,0.00116183]
[1765357631282,0.52490485,92717.0,92716.0,0.00116183]
[1765357631779,0.0664979,92698.0,92697.0,0.0569]
[1765357631997,0.0664979,92698.0,92697.0,0.3669]
[1765357633586,0.0674979,92698.0,92697.0,0.3689]
[1765357633882,0.05671,92698.0,92697.0,0.3709]
[1765357634183,0.02864,92698.0,92697.0,0.3709]
[1765357634380,0.02764,92698.0,92697.0,0.3689]
[1765357634680,0.02864,92698.0,92697.0,0.3669]
[1765357634872,0.02864,92698.0,92697.0,0.3679]
[1765357636482,0.05671,92698.0,92697.0,0.3679]
[1765357644699,0.08625065,92707.0,92697.0,0.3679]
[1765357644700,0.01094873,92707.0,92706.0,0.068847]
[1765357644896,0.05817183,92707.0,92706.0,0.528847]
[1765357645487,0.00016183,92707.0,92706.0,0.528847]
[1765357645892,0.03296183,92707.0,92706.0,0.529847]
[1765357649190,0.06217183,92707.0,92706.0,0.51906]
[1765357652400,0.06217183,92707.0,92706.0,0.529847]
[1765357654809,0.00416183,92707.0,92706.0,0.529847]
[1765357658703,0.06217183,92707.0,92706.0,0.51906]
[1765357659203,0.06217183,92707.0,92706.0,0.529847]
[1765357660609,0.00416183,92707.0,92706.0,0.529847]
[1765357662900,0.02934912,92707.0,92706.0,0.529847]
[1765357663098,0.00416183,92707.0,92706.0,0.529847]
[1765357663305,0.02934892,92707.0,92706.0,0.529847]
[1765357664103,0.05814892,92707.0,92706.0,0.529847]
[1765357664897,0.08735892,92707.0,92706.0,0.529847]
[1765357666706,0.05814892,92707.0,92706.0,0.529847]
[1765357667808,0.06217183,92707.0,92706.0,0.529847]
[1765357668309,0.08741902,92707.0,92706.0,0.529847]
[1765357671610,0.05820902,92707.0,92706.0,0.529847]
[1765357671808,0.03296183,92707.0,92706.0,0.529847]
[1765357672007,0.0582117,92707.0,92706.0,0.529847]
[1765357674114,0.0874217,92707.0,92706.0,0.529847]
[1765357675216,0.0582117,92707.0,92706.0,0.529847]
[1765357678100,0.0868517,92707.0,92706.0,0.51906]
[1765357678412,0.4468517,92707.0,92706.0,0.001]
[1765357679414,0.0680784,92694.0,92693.0,0.05688]
[1765357679613,0.0933286,92694.0,92693.0,0.54688]
[1765357680505,0.0933286,92694.0,92693.0,0.55787272]
[1765357680703,0.5133286,92694.0,92693.0,0.11919]
[1765357681017,0.0680789,92689.0,92688.0,0.00016183]
[1765357681208,0.4180789,92689.0,92688.0,0.00016183]
[1765357681414,0.4433291,92689.0,92688.0,0.00016183]
[1765357681714,0.50143872,92689.0,92688.0,0.00016183]
[1765357682112,0.4433291,92689.0,92688.0,0.00016183]
[1765357682307,0.4433291,92689.0,92688.0,0.00116183]
[1765357683011,0.1833291,92689.0,92688.0,0.00216183]
[1765357683906,0.1833291,92689.0,92688.0,0.05904183]
[1765357684217,0.1580789,92689.0,92688.0,0.05904183]
[1765357684514,0.0680789,92689.0,92688.0,0.05904183]
[1765357686015,0.2680789,92689.0,92688.0,0.05904183]
[1765357686806,0.0680789,92689.0,92688.0,0.05904183]
[1765357689919,0.4280789,92689.0,92688.0,0.05904183]
[1765357693117,0.2280789,92689.0,92688.0,0.05904183]
[1765357693316,0.0680789,92689.0,92688.0,0.05904183]
[1765357693521,0.0680789,92689.0,92688.0,0.45904183]
[1765357698725,0.0680789,92689.0,92688.0,0.20904183]
[1765357702832,0.0680789,92689.0,92688.0,0.03035183]
[1765357703423,0.0680789,92689.0,92688.0,0.05819183]
[1765357705227,0.4380789,92689.0,92688.0,0.00216183]
[1765357705735,0.46344817,92689.0,92688.0,0.00216183]
[1765357709825,0.09344817,92689.0,92688.0,0.05814183]
[1765357710025,0.09344817,92689.0,92688.0,0.45814183]
[1765357721736,0.09344817,92689.0,92688.0,0.19814183]
[1765357721937,0.09344817,92689.0,92688.0,0.40814183]
[1765357723049,0.09344817,92689.0,92688.0,0.03030183]
[1765357723240,0.45344817,92689.0,92688.0,0.00216183]
[1765357724245,0.22344817,92689.0,92688.0,0.03030183]
[1765357724650,0.22344817,92689.0,92688.0,0.05814183]
[1765357728150,0.09344817,92689.0,92688.0,0.05814183]
[1765357739664,0.09344817,92689.0,92688.0,0.00216183]
[1765357740664,0.48344817,92689.0,92688.0,0.00216183]
[1765357741065,0.48344817,92689.0,92681.0,0.04235954]
[1765357741066,0.0655097,92682.0,92681.0,4e-08]
[1765357741370,0.0655097,92682.0,92653.0,0.13538573]
[1765357741371,0.0655116,92666.0,92653.0,0.07763887]
[1765357741672,0.95129409,92666.0,92655.0,0.0110337]
[1765357741969,0.95129409,92666.0,92656.0,0.00016183]
[1765357742167,0.95137076,92666.0,92656.0,0.00016183]
[1765357742367,0.92606827,92666.0,92656.0,0.00016183]
[1765357742563,0.92606827,92666.0,92665.0,0.00207916]
[1765357745071,0.92606827,92666.0,92665.0,0.03022916]
[1765357745271,0.92606827,92666.0,92665.0,0.06002916]
[1765357745774,0.56606827,92666.0,92665.0,0.06002916]
[1765357745973,0.55527667,92666.0,92665.0,0.07082086]
[1765357746163,0.55527667,92666.0,92665.0,0.06002916]
[1765357746961,0.55535667,92666.0,92665.0,0.06002916]
[1765357751872,7.667e-05,92666.0,92665.0,0.54002916]
[1765357752573,7.667e-05,92666.0,92665.0,0.06002916]
[1765357752775,0.05626667,92666.0,92665.0,0.00207916]
[1765357753376,0.05626667,92666.0,92665.0,0.03042916]
[1765357755581,0.05626667,92666.0,92665.0,0.05825916]
[1765357755883,0.05626667,92666.0,92665.0,0.44825916]
[1765357756275,0.05626667,92666.0,92665.0,0.20825916]
[1765357756671,0.05626667,92666.0,92665.0,0.05825916]
[1765357763379,0.05626667,92666.0,92665.0,0.44825916]
[1765357763583,0.05626667,92666.0,92665.0,0.45825916]
[1765357763584,7.667e-05,92666.0,92665.0,0.45825916]
[1765357763776,0.05842667,92666.0,92665.0,0.45825916]
[1765357769276,0.08389029,92666.0,92665.0,0.45825916]
[1765357771278,0.09468189,92666.0,92665.0,0.45825916]
[1765357772891,0.06921827,92666.0,92665.0,0.06825916]
[1765357773390,0.06921827,92666.0,92665.0,0.04042916]
[1765357773790,0.06921827,92666.0,92665.0,0.06991916]
[1765357774593,0.06921827,92666.0,92665.0,0.04042916]
[1765357775596,0.06921827,92666.0,92665.0,0.06991916]
[1765357777092,0.06921827,92666.0,92665.0,0.47991916]
[1765357780395,0.09468799,92666.0,92665.0,0.47991916]
[1765357780797,0.41468799,92666.0,92665.0,0.04042916]
[1765357780999,0.41468799,92666.0,92665.0,0.01207916]
[1765357781794,0.41468799,92666.0,92665.0,0.04046916]
[1765357783894,0.41468799,92666.0,92665.0,0.01207916]
[1765357785601,0.41468799,92666.0,92665.0,0.00207916]
[1765357785797,0.13468799,92666.0,92665.0,0.03046916]
[1765357786410,0.13468799,92666.0,92665.0,0.05995916]
[1765357788503,0.09468799,92666.0,92665.0,0.05995916]
[1765357790603,0.09468799,92666.0,92665.0,0.43995916]
[1765357790796,0.03633799,92666.0,92665.0,0.43995916]
[1765357791408,0.01086827,92666.0,92665.0,0.43995916]
[1765357791705,0.01086827,92666.0,92665.0,0.51995916]
[1765357792104,7.667e-05,92666.0,92665.0,0.51995916]
[1765357792399,7.667e-05,92666.0,92665.0,0.60938297]
[1765357793206,0.01095243,92675.0,92674.0,0.05724]
[1765357793508,0.01095243,92675.0,92674.0,0.40724]
[1765357794301,0.01304426,92675.0,92674.0,0.40824]
[1765357794806,0.00525366,92675.0,92674.0,0.40924]
[1765357795009,0.00525366,92675.0,92674.0,0.49924]
[1765357803096,0.0107896,92684.0,92683.0,0.05838]
[1765357803302,0.0107896,92684.0,92683.0,0.55838]
[1765357803901,0.0107896,92684.0,92683.0,0.5691696]
[1765357804420,0.0147896,92684.0,92683.0,0.5701696]
[1765357805414,0.0177896,92684.0,92683.0,0.5711696]
[1765357806909,0.007,92684.0,92683.0,0.5711696]
[1765357807616,0.00016183,92693.0,92692.0,0.0691686]
[1765357807816,0.00016183,92693.0,92692.0,0.5191686]
[1765357808818,0.005,92693.0,92692.0,0.5201686]
[1765357809009,0.01,92693.0,92692.0,0.5211686]
[1765357809717,0.06654,92693.0,92692.0,0.42038]
[1765357809911,0.06654,92693.0,92692.0,0.06038]
[1765357810316,0.06654,92693.0,92692.0,0.002]
[1765357810801,0.09203719,92693.0,92692.0,0.002]
[1765357811204,0.09149759,92693.0,92692.0,0.002]
[1765357813019,0.0660004,92693.0,92692.0,0.002]
[1765357815119,0.0660004,92693.0,92692.0,0.03135]
[1765357816722,0.0660004,92693.0,92692.0,0.05991]
[1765357817128,0.0660004,92693.0,92692.0,0.03135]
[1765357818026,0.0660004,92693.0,92692.0,0.002]
[1765357818228,0.45151499,92693.0,92692.0,0.002]
[1765357819624,0.0667795,92684.0,92683.0,0.05885183]
[1765357820522,0.02883,92684.0,92683.0,0.42885183]
[1765357820732,0.05799,92684.0,92683.0,0.42985183]
[1765357821028,0.05899,92684.0,92683.0,0.42985183]
[1765357821326,0.0697795,92684.0,92683.0,0.42985183]
[1765357821626,0.0697795,92684.0,92683.0,0.19985183]
[1765357821829,0.0697795,92684.0,92683.0,0.05985183]
[1765357849969,0.0697795,92684.0,92683.0,0.48985183]
[1765357850771,0.0426195,92684.0,92683.0,0.48985183]
[1765357851167,0.0712695,92684.0,92683.0,0.48985183]
[1765357852858,0.0137895,92684.0,92683.0,0.48985183]
[1765357853063,0.03911764,92684.0,92683.0,0.48985183]
[1765357853869,0.02832814,92684.0,92683.0,0.56985183]
[1765357854069,0.003,92684.0,92683.0,0.56985183]
[1765357860669,0.0019981,92684.0,92683.0,0.56985183]
[1765357863072,0.0019981,92684.0,92683.0,0.64754564]
[1765357864181,0.00185139,92684.0,92683.0,0.64754564]
[1765357866181,0.00185139,92684.0,92683.0,0.56985183]
[1765357868883,0.00185139,92684.0,92683.0,0.58064143]
[1765357871682,0.07024839,92693.0,92692.0,0.0663986]